bitfinex-derivatives/quotes_BTCF0:USTF0_20251209
["timestamp","ask_amount","ask_price","bid_price","bid_amount"]
[1765298556217,0.0001594,94084.0,94083.0,0.0176301]
[1765298556997,0.0763388,94100.0,94099.0,0.0106283]
[1765298557203,0.09565418,94121.0,94099.0,0.4106283]
[1765298557406,0.09565418,94128.0,94121.0,0.0106258]
[1765298557708,0.3414546,94131.0,94127.0,0.0106251]
[1765298557894,0.3414546,94131.0,94106.0,0.0106275]
[1765298557895,0.09551284,94128.0,94124.0,0.0106255]
[1765298558203,0.09551284,94128.0,94125.0,0.0106253]
[1765298558409,0.09551284,94131.0,94130.0,0.0106248]
[1765298558611,0.09551284,94135.0,94134.0,0.0106244]
[1765298558804,0.09551284,94136.0,94120.0,0.0001594]
[1765298559010,0.09551284,94133.0,94120.0,0.0001594]
[1765298559193,0.09551284,94135.0,94134.0,0.0106244]
[1765298559397,0.09551284,94137.0,94134.0,0.0106244]
[1765298559593,0.0001594,94138.0,94137.0,0.0106241]
[1765298559801,0.0001594,94138.0,94124.0,0.001]
[1765298560106,0.09567224,94138.0,94134.0,0.0106244]
[1765298560307,0.09567224,94138.0,94130.0,0.0106248]
[1765298560506,0.0001594,94138.0,94133.0,0.0106244]
[1765298560709,0.0001594,94138.0,94120.0,0.0001594]
[1765298560907,0.0021594,94138.0,94137.0,0.0106241]
[1765298561108,0.0021594,94138.0,94133.0,0.0106245]
[1765298561508,0.0021594,94138.0,94120.0,0.0001594]
[1765298561696,0.0021594,94138.0,94131.0,0.0106247]
[1765298562102,0.0021594,94138.0,94136.0,0.0106241]
[1765298562302,0.0021594,94138.0,94129.0,0.0106249]
[1765298562505,0.09530027,94133.0,94131.0,0.0106246]
[1765298562905,0.09530027,94133.0,94123.0,0.0106256]
[1765298563106,0.3608,94128.0,94120.0,0.0001594]
[1765298563416,0.09530027,94126.0,94103.0,0.0106278]
[1765298563724,0.0106267,94114.0,94082.0,0.02059745]
[1765298563900,0.34110069,94120.0,94087.0,0.0106297]
[1765298563901,0.05718511,94089.0,94087.0,0.0106297]
[1765298564310,0.05718511,94090.0,94087.0,0.0106297]
[1765298564610,0.05718511,94091.0,94090.0,0.0106294]
[1765298565008,0.05718511,94094.0,94093.0,0.010629]
[1765298565208,0.05718511,94095.0,94093.0,0.010629]
[1765298565610,0.09530027,94121.0,94120.0,0.010626]
[1765298565809,0.09530027,94122.0,94120.0,0.010626]
[1765298566002,0.005,94126.0,94124.0,0.0106255]
[1765298566309,0.00106225,94140.0,94139.0,0.0106238]
[1765298566614,0.00106225,94140.0,94130.0,0.0001594]
[1765298566806,0.24686267,94140.0,94126.0,0.0001594]
[1765298567006,0.24686267,94140.0,94124.0,0.0011594]
[1765298567217,0.24580042,94134.0,94124.0,0.0011594]
[1765298567516,0.07614806,94134.0,94124.0,0.0011594]
[1765298567710,0.07614806,94134.0,94125.0,0.0106254]
[1765298568108,0.07614806,94134.0,94128.0,0.010625]
[1765298568315,0.07614806,94135.0,94128.0,0.010625]
[1765298568518,0.07614806,94135.0,94124.0,0.0107849]
[1765298568719,0.07614806,94135.0,94127.0,0.0106251]
[1765298568922,0.07614806,94135.0,94124.0,0.0001594]
[1765298569217,0.24986267,94140.0,94132.0,0.0106246]
[1765298569218,0.07614806,94137.0,94132.0,0.0106246]
[1765298569407,0.002,94135.0,94128.0,0.010625]
[1765298569605,0.002,94135.0,94131.0,0.0106247]
[1765298569802,0.002,94135.0,94127.0,0.0106252]
[1765298570212,0.002,94135.0,94130.0,0.0106248]
[1765298570612,0.002,94135.0,94133.0,0.0106244]
[1765298571204,0.002,94135.0,94128.0,0.010625]
[1765298571411,0.002,94135.0,94131.0,0.0106246]
[1765298571717,0.002,94135.0,94127.0,0.0106251]
[1765298572722,0.002,94135.0,94126.0,0.0106252]
[1765298573415,0.002,94135.0,94128.0,0.010625]
[1765298574026,0.002,94135.0,94132.0,0.0106245]
[1765298575008,0.002,94135.0,94127.0,0.0106252]
[1765298575410,0.3608,94136.0,94129.0,0.0106249]
[1765298575615,0.002,94135.0,94129.0,0.0106249]
[1765298576023,0.3608,94136.0,94129.0,0.0106249]
[1765298576223,0.002,94135.0,94129.0,0.0106249]
[1765298577018,0.002,94135.0,94124.0,0.0001594]
[1765298577220,0.3608,94125.0,94124.0,0.0001594]
[1765298579127,0.16294962,94134.0,94124.0,0.0001594]
[1765298579828,0.3608,94127.0,94125.0,0.0106254]
[1765298581624,0.002,94134.0,94133.0,0.0106245]
[1765298581815,0.002,94134.0,94130.0,0.0106248]
[1765298582010,0.3608,94136.0,94132.0,0.0106245]
[1765298582523,0.3608,94136.0,94125.0,0.0116254]
[1765298582714,0.3608,94128.0,94126.0,0.0106253]
[1765298583424,0.3608,94128.0,94124.0,0.0001594]
[1765298583620,0.3608,94128.0,94125.0,0.0106254]
[1765298585519,0.3608,94128.0,94124.0,0.0001594]
[1765298585718,0.3608,94128.0,94104.0,0.3608]
[1765298585719,0.0106254,94125.0,94110.0,0.0106271]
[1765298585918,0.0106268,94113.0,94086.0,0.0106298]
[1765298586118,0.3608,94101.0,94100.0,0.0106282]
[1765298586322,0.16294962,94110.0,94107.0,0.0106274]
[1765298586515,0.3608,94114.0,94109.0,0.0106271]
[1765298586719,0.3608,94114.0,94108.0,0.0106273]
[1765298586923,0.3608,94114.0,94113.0,0.0106268]
[1765298587134,0.0001594,94121.0,94113.0,0.0106268]
[1765298587319,0.0001594,94121.0,94119.0,0.010626]
[1765298587623,0.0001594,94121.0,94106.0,0.3608]
[1765298587828,0.0001594,94121.0,94117.0,0.0106262]
[1765298587829,0.3608,94120.0,94117.0,0.0106262]
[1765298588024,0.0001594,94121.0,94106.0,0.3608]
[1765298588536,0.3608,94120.0,94106.0,0.3608]
[1765298588726,0.3608,94110.0,94108.0,0.0106273]
[1765298588920,0.16294962,94116.0,94115.0,0.0106265]
[1765298589114,0.0061594,94121.0,94120.0,0.010626]
[1765298589327,0.0061594,94121.0,94117.0,0.0106263]
[1765298589524,0.0081594,94121.0,94117.0,0.0106263]
[1765298589725,0.0081594,94121.0,94119.0,0.010626]
[1765298590327,0.0061594,94121.0,94120.0,0.001]
[1765298590829,0.0001594,94121.0,94120.0,0.001]
[1765298592827,0.0001594,94121.0,94120.0,0.002]
[1765298593628,0.0001594,94121.0,94120.0,0.001]
[1765298593826,0.0001594,94121.0,94120.0,0.002]
[1765298596925,0.0001594,94121.0,94107.0,10.0]
[1765298596926,0.0106263,94118.0,94107.0,10.0]
[1765298597135,0.3608,94111.0,94110.0,0.0106271]
[1765298597431,0.3608,94111.0,94107.0,10.0]
[1765298597636,0.3714271,94110.0,94107.0,10.0]
[1765298597930,0.3714271,94110.0,94107.0,8.95504569]
[1765298598129,0.7216,94108.0,94107.0,8.95504569]
[1765298598332,0.7216,94108.0,94107.0,8.95604569]
[1765298599233,1.32060593,94108.0,94107.0,8.95504569]
[1765298599537,1.22512,94108.0,94107.0,8.95504569]
[1765298599731,1.40451802,94108.0,94107.0,8.95504569]
[1765298599925,1.30903209,94108.0,94107.0,8.95504569]
[1765298600236,0.86436,94108.0,94107.0,8.95504569]
[1765298600430,0.86636,94108.0,94107.0,8.95504569]
[1765298600630,0.95334091,94108.0,94107.0,8.95504569]
[1765298602833,0.95434091,94108.0,94107.0,8.95504569]
[1765298604226,0.95534091,94108.0,94107.0,8.95504569]
[1765298605834,1.71614091,94108.0,94107.0,8.95504569]
[1765298606039,1.71314091,94108.0,94107.0,8.95504569]
[1765298606335,0.95530091,94108.0,94107.0,8.95504569]
[1765298606526,0.99450091,94108.0,94107.0,8.95504569]
[1765298606728,1.71610091,94108.0,94107.0,8.95504569]
[1765298608935,1.71310091,94108.0,94107.0,8.95504569]
[1765298609135,1.31610091,94108.0,94107.0,8.95504569]
[1765298609330,0.50752,94108.0,94107.0,8.95504569]
[1765298609531,0.09530004,94109.0,94108.0,0.0106273]
[1765298609725,0.13232729,94130.0,94120.0,0.010626]
[1765298609929,0.13232729,94130.0,94112.0,0.0106269]
[1765298610126,0.13232729,94137.0,94126.0,0.0106252]
[1765298610442,0.13232729,94137.0,94110.0,0.16294962]
[1765298610627,0.13232729,94136.0,94110.0,0.16294962]
[1765298610826,0.0001594,94132.0,94117.0,0.0106262]
[1765298611331,0.13248669,94132.0,94117.0,0.0106262]
[1765298611526,0.13248669,94132.0,94116.0,0.0106263]
[1765298611733,0.0001594,94132.0,94121.0,0.0106258]
[1765298612339,0.0001594,94132.0,94118.0,0.3608]
[1765298612532,0.07624224,94124.0,94118.0,0.3608]
[1765298612733,0.07624224,94124.0,94118.0,0.3714262]
[1765298612944,0.07624224,94122.0,94118.0,0.3714262]
[1765298613343,0.07624224,94122.0,94118.0,0.3608]
[1765298613639,0.07624224,94123.0,94118.0,0.3714262]
[1765298613940,0.3608,94122.0,94114.0,0.0001594]
[1765298614136,0.0106264,94116.0,94114.0,0.0001594]
[1765298614643,0.7216,94115.0,94114.0,0.0001594]
[1765298615140,0.0106264,94116.0,94114.0,0.0001594]
[1765298615845,0.02061407,94116.0,94114.0,0.0001594]
[1765298616250,0.0106255,94124.0,94114.0,0.0001594]
[1765298616431,0.003,94116.0,94114.0,0.0001594]
[1765298617035,0.004,94116.0,94114.0,0.0001594]
[1765298617733,0.003,94116.0,94114.0,0.0001594]
[1765298617932,0.003,94116.0,94115.0,0.0106265]
[1765298618140,0.07626827,94122.0,94120.0,0.010626]
[1765298618335,0.07626827,94124.0,94120.0,0.010626]
[1765298618532,0.07626827,94125.0,94124.0,0.0106255]
[1765298618936,0.07626827,94126.0,94124.0,0.0106255]
[1765298619540,0.07626827,94127.0,94124.0,0.0106255]
[1765298619741,0.07626827,94127.0,94124.0,0.0116255]
[1765298620142,0.07626827,94127.0,94126.0,0.3608]
[1765298620538,0.07626827,94129.0,94127.0,0.0106252]
[1765298620843,0.07626827,94128.0,94127.0,0.0106252]
[1765298621946,0.07626827,94129.0,94127.0,0.0106252]
[1765298622540,0.07626827,94128.0,94127.0,0.0106252]
[1765298622942,0.0001594,94132.0,94127.0,0.0106252]
[1765298622943,0.07626827,94129.0,94127.0,0.0106252]
[1765298623140,0.07626827,94129.0,94127.0,0.0126252]
[1765298623340,0.0001594,94132.0,94127.0,0.0136252]
[1765298623341,0.07626827,94131.0,94127.0,0.0136252]
[1765298623646,0.07626827,94130.0,94127.0,0.0136252]
[1765298623950,0.07642767,94132.0,94131.0,0.0106247]
[1765298624134,0.07626827,94134.0,94131.0,0.0106247]
[1765298624742,0.00106225,94140.0,94139.0,0.0106238]
[1765298625048,0.09531624,94160.0,94145.0,0.0106231]
[1765298625246,0.0001594,94156.0,94145.0,0.0106231]
[1765298625441,0.0001594,94156.0,94148.0,0.3608]
[1765298625743,0.0001594,94156.0,94148.0,0.3714228]
[1765298625949,0.0001594,94156.0,94155.0,0.010622]
[1765298627649,0.0011594,94156.0,94155.0,0.010622]
[1765298628454,0.0011594,94156.0,94152.0,0.0106224]
[1765298628654,0.0011594,94156.0,94155.0,0.010622]
[1765298629553,0.0001594,94156.0,94155.0,0.010622]
[1765298629752,0.0011594,94156.0,94155.0,0.010622]
[1765298630352,0.0001594,94156.0,94155.0,0.010622]
[1765298630549,0.0011594,94156.0,94155.0,0.010622]
[1765298632255,0.0001594,94156.0,94155.0,0.010622]
[1765298632457,0.0001594,94156.0,94155.0,0.012622]
[1765298632656,0.09547564,94156.0,94155.0,0.012622]
[1765298633159,0.09547564,94156.0,94155.0,0.017622]
[1765298633858,0.0001594,94156.0,94155.0,0.015622]
[1765298634056,0.0001594,94156.0,94155.0,0.017622]
[1765298634254,0.09547564,94156.0,94155.0,0.017622]
[1765298634449,0.0001594,94156.0,94155.0,0.017622]
[1765298636161,0.0001594,94156.0,94155.0,0.015622]
[1765298636354,0.0001594,94156.0,94155.0,0.012622]
[1765298636557,0.13338926,94165.0,94155.0,0.012622]
[1765298636558,0.00106197,94165.0,94164.0,0.010621]
[1765298638059,0.13232729,94173.0,94172.0,0.0106201]
[1765298638251,0.00015931,94174.0,94172.0,0.0106201]
[1765298638560,0.07604601,94173.0,94172.0,0.0106201]
[1765298638775,0.00015931,94174.0,94172.0,0.0106201]
[1765298639158,7e-08,94178.0,94176.0,0.0106197]
[1765298639357,0.09505698,94188.0,94187.0,0.0106184]
[1765298639551,0.09611867,94190.0,94187.0,0.0106184]
[1765298640050,0.08443395,94190.0,94189.0,0.0106182]
[1765298640252,0.00015931,94198.0,94197.0,0.0106173]
[1765298641251,0.00015931,94198.0,94192.0,0.0106178]
[1765298641449,0.00015931,94198.0,94188.0,0.00015931]
[1765298641450,0.00015931,94198.0,94189.0,0.0106182]
[1765298641649,0.00015931,94198.0,94188.0,0.00015931]
[1765298641955,0.00015931,94198.0,94188.0,0.01077751]
[1765298642152,0.00115931,94198.0,94188.0,0.01077751]
[1765298642460,0.00215931,94198.0,94123.0,0.96712]
[1765298642754,0.5026,94197.0,94150.0,0.24561177]
[1765298642959,0.5026,94197.0,94168.0,0.0106205]
[1765298643147,0.5026,94196.0,94160.0,0.24561177]
[1765298643349,0.002,94198.0,94170.0,0.24561177]
[1765298643658,0.00015931,94193.0,94175.0,0.00015931]
[1765298643856,0.00015931,94193.0,94185.0,0.0106186]
[1765298644157,0.00015931,94193.0,94175.0,0.00015931]
[1765298645656,0.00015931,94193.0,94175.0,0.01077901]
[1765298645857,0.00115931,94193.0,94175.0,0.01077901]
[1765298646465,0.00115931,94193.0,94175.0,0.00015931]
[1765298646759,0.0106206,94168.0,94136.0,0.0106242]
[1765298647056,0.24561177,94160.0,94140.0,0.0106236]
[1765298647258,0.1598,94163.0,94144.0,0.0106232]
[1765298647459,0.19752,94163.0,94144.0,0.0106232]
[1765298647762,0.19767931,94163.0,94144.0,0.01078251]
[1765298647965,0.19767931,94163.0,94152.0,0.0106223]
[1765298648560,0.20067931,94163.0,94150.0,0.0106225]
[1765298648749,0.20067931,94163.0,94144.0,0.00015931]
[1765298648750,0.20067931,94163.0,94158.0,0.0106216]
[1765298649267,0.20067931,94163.0,94144.0,0.00015931]
[1765298649268,0.20067931,94163.0,94145.0,0.010623]
[1765298649564,0.20067931,94163.0,94152.0,0.001]
[1765298649764,0.0106217,94159.0,94152.0,0.001]
[1765298649962,0.0106227,94149.0,94144.0,0.00015931]
[1765298650158,0.38444,94150.0,94144.0,0.00015931]
[1765298650459,0.16599575,94163.0,94145.0,0.0106231]
[1765298650670,0.31064,94162.0,94145.0,0.0106231]
[1765298650960,0.08692781,94163.0,94158.0,0.002]
[1765298651160,0.50248,94161.0,94158.0,0.002]
[1765298651365,0.0106222,94154.0,94144.0,0.00015931]
[1765298651558,0.3608,94148.0,94144.0,0.00415931]
[1765298651761,0.3608,94145.0,94144.0,0.00415931]
[1765298652069,0.3714231,94145.0,94144.0,0.00015931]
[1765298652262,0.7216,94145.0,94130.0,0.0106248]
[1765298652568,0.7216,94145.0,94123.0,0.3608]
[1765298652569,0.3608,94145.0,94123.0,0.3608]
[1765298652754,0.3608,94151.0,94144.0,0.002]
[1765298652960,0.3608,94151.0,94144.0,0.003]
[1765298652961,0.3608,94147.0,94144.0,0.003]
[1765298654167,0.3608,94147.0,94144.0,0.001]
[1765298654368,0.3608,94147.0,94140.0,0.00106225]
[1765298654569,0.001,94145.0,94140.0,0.00106225]
[1765298654962,0.3608,94141.0,94136.0,0.00015931]
[1765298655165,0.50248,94140.0,94115.0,0.00106254]
[1765298655368,0.3608,94116.0,94115.0,0.00106254]
[1765298655670,0.86328,94116.0,94115.0,0.00106254]
[1765298655864,1.22408,94116.0,94115.0,0.00106254]
[1765298656070,0.86328,94116.0,94115.0,0.00106254]
[1765298656269,0.86324,94116.0,94115.0,0.00106254]
[1765298656971,0.00015931,94125.0,94115.0,0.01168904]
[1765298657176,0.00015931,94125.0,94121.0,0.3714259]
[1765298657469,0.00015931,94125.0,94121.0,0.0106259]
[1765298658070,0.00015931,94125.0,94124.0,0.0106255]
[1765298658262,0.00215931,94125.0,94124.0,0.0106255]
[1765298658876,0.00115931,94125.0,94124.0,0.0106255]
[1765298659069,0.00215931,94125.0,94124.0,0.0106255]
[1765298659275,0.50463931,94125.0,94124.0,0.0106255]
[1765298659775,0.00215931,94125.0,94124.0,0.0106255]
[1765298660067,0.3608,94154.0,94124.0,0.0106255]
[1765298660068,0.07606794,94156.0,94153.0,0.0106222]
[1765298660268,0.07606794,94160.0,94157.0,0.0106218]
[1765298660470,1.83184713,94200.0,94142.0,0.0106235]
[1765298660471,0.07606794,94165.0,94163.0,0.0106211]
[1765298660662,0.07606794,94171.0,94144.0,0.0106232]
[1765298660866,0.07606794,94161.0,94158.0,0.0106216]
[1765298661370,0.07606794,94161.0,94153.0,0.0106222]
[1765298661572,0.07606794,94160.0,94157.0,0.001]
[1765298661777,0.07606794,94161.0,94158.0,0.0106217]
[1765298662074,0.07606794,94162.0,94158.0,0.0106217]
[1765298662276,0.07606794,94164.0,94158.0,0.0126217]
[1765298662476,0.07606794,94163.0,94158.0,0.002]
[1765298662771,0.07606794,94161.0,94158.0,0.002]
[1765298663076,0.07906794,94161.0,94158.0,0.002]
[1765298663274,0.43227931,94169.0,94158.0,0.002]
[1765298663275,0.3608,94162.0,94159.0,0.0106216]
[1765298663466,0.00015931,94169.0,94168.0,0.0106206]
[1765298663976,1e-08,94169.0,94168.0,0.7322206]
[1765298664271,1e-08,94169.0,94168.0,1.1322206]
[1765298664471,0.09506197,94193.0,94192.0,0.0106178]
[1765298664675,0.09506197,94193.0,94192.0,0.3714178]
[1765298664972,0.09506197,94193.0,94192.0,0.7714178]
[1765298665181,0.13232729,94202.0,94199.0,0.0106171]
[1765298665367,0.18934179,94217.0,94199.0,0.0106171]
[1765298665568,0.367096,94200.0,94199.0,0.7322171]
[1765298665764,0.00015931,94209.0,94208.0,0.010616]
[1765298665967,0.00015931,94209.0,94208.0,0.371416]
[1765298666566,0.00015931,94209.0,94208.0,0.410616]
[1765298666770,0.13232729,94218.0,94214.0,0.0106154]
[1765298666966,0.13232729,94224.0,94214.0,0.3714154]
[1765298667375,0.3608,94224.0,94208.0,0.001]
[1765298667579,0.3608,94216.0,94208.0,0.001]
[1765298667879,0.14294269,94214.0,94194.0,0.0106175]
[1765298668069,0.13232729,94210.0,94193.0,0.0106176]
[1765298668269,0.13232729,94210.0,94195.0,0.0106174]
[1765298668469,0.00206141,94215.0,94200.0,0.25622867]
[1765298668669,0.00206141,94215.0,94213.0,0.0106155]
[1765298669566,0.00106141,94215.0,94213.0,0.0106155]
[1765298669971,0.00106141,94215.0,94208.0,0.3608]
[1765298669972,0.00106141,94215.0,94212.0,0.0106155]
[1765298670768,0.00106141,94215.0,94214.0,0.0106154]
[1765298670973,0.00206141,94215.0,94214.0,0.0106154]
[1765298671675,0.00106141,94215.0,94214.0,0.0106154]
[1765298671870,0.00106141,94215.0,94201.0,0.3608]
[1765298671871,0.00206141,94215.0,94213.0,0.35564898]
[1765298672081,0.00206141,94215.0,94201.0,0.0106168]
[1765298672280,0.13314666,94211.0,94200.0,0.0106169]
[1765298672474,0.3608,94206.0,94200.0,0.0106169]
[1765298672678,0.12799564,94203.0,94200.0,0.4106169]
[1765298672876,0.00206141,94215.0,94213.0,0.0106154]
[1765298673587,0.50204,94214.0,94210.0,0.0106157]
[1765298673781,0.50204,94214.0,94190.0,0.24577108]
[1765298673976,0.00206141,94215.0,94190.0,0.24577108]
[1765298673977,0.00016141,94215.0,94213.0,0.0106154]
[1765298674183,0.18934179,94225.0,94220.0,0.0106147]
[1765298674680,4e-05,94226.0,94220.0,0.0106147]
[1765298675585,4e-05,94226.0,94220.0,0.3714147]
[1765298676585,0.00115922,94221.0,94220.0,0.3714147]
[1765298677687,0.00115922,94221.0,94220.0,0.0106147]
[1765298677887,0.00115922,94221.0,94220.0,0.3714147]
[1765298678391,0.00115922,94221.0,94211.0,0.36095922]
[1765298678579,0.00115922,94221.0,94212.0,0.0106156]
[1765298678782,0.00115922,94221.0,94211.0,0.36095922]
[1765298678987,0.50192,94220.0,94211.0,0.36095922]
[1765298679286,0.50192,94220.0,94211.0,0.00015922]
[1765298679786,0.3608,94212.0,94211.0,0.00015922]
[1765298680180,0.0106157,94211.0,94192.0,0.0106178]
[1765298680382,0.3608,94193.0,94187.0,0.01045118]
[1765298680589,0.3608,94194.0,94187.0,0.01045118]
[1765298680797,0.3608,94198.0,94195.0,0.0106174]
[1765298681490,0.00015922,94206.0,94202.0,0.0106167]
[1765298681785,0.00015922,94206.0,94202.0,0.3714167]
[1765298683183,0.00015922,94206.0,94202.0,0.3608]
[1765298683487,0.3608,94229.0,94225.0,0.0106141]
[1765298685698,0.3608,94232.0,94225.0,0.0106141]
[1765298686197,0.00104,94226.0,94225.0,0.0106141]
[1765298686989,0.00104,94226.0,94216.0,0.00015922]
[1765298687190,0.50284,94226.0,94223.0,0.0106143]
[1765298687390,0.50284,94226.0,94216.0,0.00015922]
[1765298687703,0.50284,94226.0,94221.0,0.0106145]
[1765298687897,0.50284,94226.0,94216.0,0.00015922]
[1765298688086,0.50284,94226.0,94220.0,0.0106147]
[1765298688292,0.50284,94226.0,94216.0,0.00015922]
[1765298688696,0.3608,94224.0,94219.0,0.0106147]
[1765298688898,0.3608,94224.0,94216.0,0.00015922]
[1765298689302,0.3608,94224.0,94222.0,0.0106144]
[1765298689801,0.3618,94224.0,94222.0,0.0106144]
[1765298690004,0.50176,94223.0,94222.0,0.0106144]
[1765298690301,0.50176,94223.0,94222.0,0.0106145]
[1765298690694,0.50176,94223.0,94216.0,0.00015922]
[1765298690996,0.50176,94223.0,94222.0,0.0106145]
[1765298691598,0.50176,94223.0,94216.0,0.00015922]
[1765298691800,0.50176,94223.0,94220.0,0.0106147]
[1765298692097,0.001,94224.0,94223.0,0.0106144]
[1765298692395,4e-05,94226.0,94223.0,0.0106144]
[1765298692601,4e-05,94226.0,94225.0,0.3608]
[1765298693599,0.00104,94226.0,94225.0,0.3608]
[1765298694197,0.08620854,94255.0,94225.0,0.7608]
[1765298694393,0.09489474,94280.0,94226.0,0.98486]
[1765298694596,0.38018505,94359.0,94300.0,0.0106057]
[1765298694597,0.24616558,94330.0,94300.0,0.0106057]
[1765298694799,0.24616558,94330.0,94301.0,0.50168]
[1765298695102,0.00021201,94337.0,94320.0,0.24561177]
[1765298695302,0.00021201,94337.0,94331.0,0.0106021]
[1765298695487,0.00021201,94337.0,94320.0,0.24561177]
[1765298695803,0.19082457,94336.0,94319.0,0.00015904]
[1765298695996,0.00021201,94337.0,94330.0,0.0106023]
[1765298696198,0.00021201,94337.0,94319.0,0.00015904]
[1765298696397,0.0106022,94331.0,94290.0,0.24561177]
[1765298696591,0.19082457,94336.0,94290.0,0.19]
[1765298696793,0.010602,94333.0,94300.0,0.16227463]
[1765298696994,0.17287703,94330.0,94295.0,0.0106062]
[1765298697195,0.17287703,94330.0,94290.0,0.16227463]
[1765298697196,0.0106027,94327.0,94302.0,0.0106054]
[1765298697500,0.50928,94326.0,94305.0,0.00015904]
[1765298697799,0.010604,94315.0,94305.0,0.00015904]
[1765298698001,0.0106039,94316.0,94305.0,0.00015904]
[1765298698202,0.16227463,94320.0,94305.0,0.00015904]
[1765298698500,0.0106033,94322.0,94305.0,0.00015904]
[1765298698896,0.50916,94323.0,94305.0,0.00015904]
[1765298699095,0.50908,94322.0,94306.0,0.010605]
[1765298699292,0.50908,94322.0,94305.0,0.00015904]
[1765298700104,0.19082457,94324.0,94305.0,0.00015904]
[1765298700297,0.0106038,94318.0,94305.0,0.00015904]
[1765298700501,0.20142757,94324.0,94305.0,0.00015904]
[1765298700699,0.50876,94323.0,94305.0,0.00015904]
[1765298701005,0.16227463,94320.0,94267.0,0.02763055]
[1765298701308,0.010606,94298.0,94271.0,0.0106089]
[1765298701504,0.010606,94298.0,94256.0,0.08626718]
[1765298701505,0.16227463,94310.0,94280.0,0.0106079]
[1765298701697,0.16227463,94300.0,94260.0,0.16227463]
[1765298701895,0.16227463,94300.0,94243.0,0.010612]
[1765298701896,0.08286946,94317.0,94263.0,0.0530493]
[1765298702203,0.00015904,94309.0,94305.0,0.0106051]
[1765298702596,0.010605,94307.0,94284.0,0.0106074]
[1765298702797,0.16227463,94300.0,94282.0,0.00113635]
[1765298702996,0.16227463,94292.0,94282.0,0.00213635]
[1765298703202,0.0106068,94290.0,94262.0,0.0106099]
[1765298703405,0.16227463,94280.0,94262.0,0.0106099]
[1765298703606,0.16227463,94280.0,94262.0,0.00015904]
[1765298703607,0.16227463,94272.0,94262.0,0.00015904]
[1765298704206,9.362e-05,94271.0,94267.0,0.0106094]
[1765298704404,0.19066553,94270.0,94267.0,0.0106094]
[1765298705000,9.362e-05,94271.0,94269.0,0.0106092]
[1765298705203,9.362e-05,94271.0,94262.0,0.00015904]
[1765298705404,0.18830472,94271.0,94267.0,0.0106093]
[1765298706397,0.18830472,94271.0,94270.0,0.7216]
[1765298706906,0.18830472,94271.0,94270.0,0.3608]
[1765298707210,0.00109362,94271.0,94262.0,0.36095904]
[1765298707408,0.50936,94270.0,94262.0,0.36095904]
[1765298707605,0.00109362,94271.0,94270.0,0.3608]
[1765298707910,0.51045362,94271.0,94270.0,0.3608]
[1765298708107,0.51145362,94271.0,94262.0,0.00015904]
[1765298708404,0.00209362,94271.0,94262.0,0.00015904]
[1765298708611,0.50932,94270.0,94262.0,0.00015904]
[1765298708801,0.00109362,94271.0,94262.0,0.00015904]
[1765298709000,0.01170262,94271.0,94262.0,0.00015904]
[1765298709206,0.01070262,94271.0,94262.0,0.00015904]
[1765298709409,0.50912,94270.0,94269.0,0.3608]
[1765298709606,0.50912,94270.0,94267.0,0.3608]
[1765298710105,0.5197292,94270.0,94267.0,0.3608]
[1765298710510,0.50912,94270.0,94267.0,0.3608]
[1765298710812,0.00109362,94271.0,94267.0,0.3608]
[1765298710813,0.5195293,94269.0,94267.0,0.3608]
[1765298711108,0.0106098,94263.0,94262.0,0.00015904]
[1765298711307,0.01072979,94263.0,94262.0,0.00015904]
[1765298711511,0.37152979,94263.0,94262.0,0.00015904]
[1765298711708,0.36091999,94263.0,94262.0,0.00015904]
[1765298711911,0.50899999,94263.0,94262.0,0.00015904]
[1765298712710,0.50999999,94263.0,94262.0,0.00015904]
[1765298714011,0.50999999,94263.0,94252.0,0.3608]
[1765298714012,0.010611,94253.0,94252.0,0.3608]
[1765298714209,0.0106112,94252.0,94241.0,0.3608]
[1765298714406,0.00012001,94253.0,94242.0,0.03251955]
[1765298714407,0.0106119,94245.0,94242.0,0.03251955]
[1765298714709,0.0106121,94243.0,94241.0,0.3608]
[1765298714915,0.0106121,94243.0,94240.0,0.00106113]
[1765298715311,0.0106131,94234.0,94233.0,0.00010689]
[1765298715513,0.45315287,94234.0,94233.0,0.00010689]
[1765298715906,9.977e-05,94234.0,94233.0,0.00010689]
[1765298716102,0.31997977,94234.0,94233.0,0.00010689]
[1765298716311,9.977e-05,94234.0,94233.0,0.00010689]
[1765298716511,0.50869977,94234.0,94233.0,0.00010689]
[1765298716717,0.00099999,94210.0,94158.0,0.02763055]
[1765298716910,0.010617,94200.0,94141.0,0.02763055]
[1765298717108,0.010617,94200.0,94121.0,0.0106258]
[1765298717109,0.16227463,94160.0,94142.0,0.02894053]
[1765298717418,0.0106217,94158.0,94132.0,0.02763055]
[1765298717612,0.0001593,94154.0,94133.0,0.02891888]
[1765298717916,0.16227463,94150.0,94114.0,0.02763055]
[1765298718103,0.16227463,94140.0,94116.0,0.05542011]
[1765298718303,0.2626671,94139.0,94117.0,0.02778956]
[1765298718620,0.0001071,94139.0,94132.0,0.006]
[1765298719919,0.010624,94137.0,94132.0,0.006]
[1765298720215,0.16227463,94142.0,94116.0,0.005]
[1765298720216,0.0106261,94120.0,94116.0,0.005]
[1765298720515,0.0106262,94118.0,94116.0,0.005]
[1765298720712,0.0106262,94118.0,94090.0,0.00106282]
[1765298721336,0.09529441,94118.0,94090.0,0.00106282]
[1765298721510,0.0106264,94116.0,94090.0,0.00106282]
[1765298721714,1.5,94117.0,94090.0,0.00106282]
[1765298721913,0.51028,94116.0,94104.0,0.0106277]
[1765298722110,0.51024,94116.0,94102.0,0.010628]
[1765298722427,0.00013025,94116.0,94090.0,0.00106282]
[1765298722611,0.00013025,94116.0,94101.0,0.010628]
[1765298722921,0.00013025,94116.0,94090.0,0.16333745]
[1765298723111,0.00013025,94116.0,94103.0,0.0106278]
[1765298723309,0.00013025,94116.0,94092.0,0.010629]
[1765298723511,0.00013025,94116.0,94096.0,0.0106286]
[1765298723816,0.16227463,94160.0,94102.0,0.0106279]
[1765298724017,0.16227463,94150.0,94128.0,0.010625]
[1765298724214,0.0106204,94169.0,94102.0,0.0106279]
[1765298724414,1.5,94168.0,94140.0,0.16227463]
[1765298724920,0.00010584,94167.0,94140.0,0.16227463]
[1765298725219,0.0001593,94163.0,94145.0,0.0001593]
[1765298725420,0.0106217,94158.0,94145.0,0.0001593]
[1765298725609,9.587e-05,94157.0,94145.0,0.0001593]
[1765298727322,9.587e-05,94157.0,94146.0,0.010623]
[1765298727520,9.587e-05,94157.0,94150.0,0.0106225]
[1765298727829,0.0001593,94163.0,94162.0,0.0106212]
[1765298728012,0.0838802,94201.0,94147.0,0.16227463]
[1765298728013,0.51004,94187.0,94147.0,0.16227463]